bitfinex/quotes_ETHUSD_20211001
["timestamp","ask_amount","ask_price","bid_price","bid_amount"]
[1633107678933,0.04246161,3264.0,3263.4,0.84015232]
[1633107679135,0.07760049,3264.0,3263.7,0.01202603]
[1633107679332,0.07760049,3264.0,3263.5,0.01502603]
[1633107679732,0.07760049,3264.0,3263.8,4.59451]
[1633107679935,0.00145504,3264.5,3263.9,14.1]
[1633107680134,0.00145504,3264.5,3264.1,1.2581]
[1633107680333,0.00145504,3264.5,3264.2,0.147]
[1633107680533,0.05034382,3264.6,3264.2,0.15602603]
[1633107680732,0.05034382,3264.6,3264.3,5.03429005]
[1633107681137,0.05034382,3264.6,3264.4,0.00902603]
[1633107681332,0.00145504,3265.2,3264.4,0.00902603]
[1633107681333,0.00145504,3265.2,3264.5,1.69896098]
[1633107681533,0.00145504,3265.2,3264.7,1.5647885]
[1633107681733,0.08592347,3264.9,3264.8,6.129]
[1633107681933,0.08737851,3264.9,3264.8,18.93830209]
[1633107682132,0.08737851,3264.9,3264.8,8.53230209]
[1633107683133,5.504e-05,3265.2,3265.1,13.41394824]
[1633107683340,3.77132238,3266.7,3266.2,1.76793865]
[1633107683538,0.02527166,3267.8,3266.2,3.32393865]
[1633107683539,11.7636,3267.7,3266.2,3.32393865]
[1633107683741,0.02527166,3267.8,3266.2,3.32393865]
[1633107683742,3.06422,3267.0,3266.2,3.32393865]
[1633107683940,0.90030953,3266.3,3266.2,3.32393865]
[1633107684136,0.73765785,3266.5,3266.2,3.32393865]
[1633107684338,3.06422,3267.0,3266.2,7.91594865]
[1633107684536,3.06422,3267.0,3266.2,6.35994865]
[1633107684936,3.06422,3267.0,3266.2,9.42118865]
[1633107685136,1.03224001,3266.7,3266.2,9.42118865]
[1633107685736,0.85958877,3266.4,3266.2,9.42118865]
[1633107685938,0.85958877,3266.4,3266.0,2.603e-05]
[1633107686137,1.15467811,3266.2,3266.0,2.603e-05]
[1633107686341,0.85958877,3266.4,3265.7,2.603e-05]
[1633107686539,3.06228,3266.1,3265.6,2.603e-05]
[1633107686937,3.10612366,3266.6,3265.8,1.294]
[1633107687137,3.10612366,3266.6,3266.1,3.06116]
[1633107687340,0.04452366,3266.6,3266.1,3.06116]
[1633107687539,1.12166911,3266.5,3266.1,3.06116]
[1633107687740,0.04452366,3266.6,3266.1,3.06116]
[1633107688340,0.04452366,3266.6,3266.0,4.59228]
[1633107688539,0.00145504,3265.6,3265.5,3.05426603]
[1633107689540,0.00291008,3265.6,3265.5,15.64098603]
[1633107689746,3.06471,3266.5,3265.6,8.9]
[1633107689747,0.003,3266.5,3265.6,8.9]
[1633107689944,0.003,3266.5,3266.1,0.87338294]
[1633107690143,0.003,3266.5,3266.2,0.32353253]
[1633107690944,0.003,3266.5,3266.2,4.59118]
[1633107691141,0.003,3266.5,3266.3,1.294]
[1633107691342,0.003,3266.5,3266.2,4.59118]
[1633107691546,0.003,3266.5,3266.2,4.82592182]
[1633107691942,0.003,3266.5,3266.2,4.59118]
[1633107692743,0.003,3266.5,3266.0,3.06056]
[1633107693543,0.04452366,3266.9,3266.0,3.06056]
[1633107693742,0.04452366,3266.9,3266.0,3.06356]
[1633107693942,1.13512019,3266.9,3266.8,0.22997513]
[1633107694342,1.97843032,3266.9,3266.8,0.22997513]
[1633107694542,1.13512019,3266.9,3266.8,0.22997513]
[1633107695543,4.9219129,3266.9,3266.8,0.22997513]
[1633107696145,3.10599366,3266.9,3266.8,0.22997513]
[1633107697344,4.93418874,3266.9,3266.8,0.22997513]
[1633107697544,3.91873031,3266.9,3266.8,0.22997513]
[1633107698544,3.09550586,3266.9,3266.8,0.22997513]
[1633107704950,3.0969609,3266.9,3266.8,0.22997513]
[1633107705150,3.09550586,3266.9,3266.8,0.22997513]
[1633107706149,3.09550586,3266.9,3266.8,0.22852009]
[1633107707615,0.04452366,3266.9,3266.8,2.41049751]
[1633107707815,0.04752366,3267.5,3266.9,14.41369497]
[1633107708014,0.04752366,3267.5,3267.1,0.25766171]
[1633107708214,0.04752366,3267.5,3267.2,0.2296977]
[1633107708517,0.04452366,3268.2,3268.1,13.54384944]
[1633107708714,0.04452366,3268.2,3268.1,8.00503286]
[1633107708912,0.04752366,3268.5,3268.1,5.55408175]
[1633107709314,0.04752366,3268.5,3268.3,0.31662298]
[1633107709514,0.04452366,3269.2,3268.5,0.21759332]
[1633107709719,0.04452366,3269.2,3268.8,6.33739854]
[1633107709916,0.003,3269.5,3269.0,8.41786389]
[1633107710117,0.003,3269.5,3269.0,3.29768434]
[1633107710317,0.003,3269.5,3269.4,0.96568415]
[1633107710515,0.003,3269.5,3269.4,1.75768415]
[1633107710817,0.003,3269.5,3269.4,0.792]
[1633107711821,0.003,3269.5,3269.1,0.82886047]
[1633107712016,3.05883,3269.3,3268.6,7.3385337]
[1633107712623,1.16571985,3268.9,3268.6,6.11543]
[1633107712821,1.16571985,3268.9,3268.3,3.06136]
[1633107713020,1.16571985,3268.9,3268.4,0.003]
[1633107713225,1.07793769,3268.7,3268.4,0.003]
[1633107713421,1.07793769,3268.7,3268.2,0.003]
[1633107713621,3.05883,3269.3,3268.5,4.58877]
[1633107714020,3.05883,3269.3,3268.5,4.59177]
[1633107714222,3.05883,3269.3,3268.8,0.86528028]
[1633107714624,0.93136092,3268.9,3268.8,0.86528028]
[1633107714825,3.05883,3269.3,3268.8,5.45365028]
[1633107715222,3.05883,3269.3,3268.8,4.58837]
[1633107715422,3.05883,3269.3,3268.4,0.003]
[1633107715824,1.1320018,3268.7,3268.4,0.003]
[1633107716422,3.05938,3268.8,3268.4,0.003]
[1633107716824,3.05883,3269.3,3268.6,1.2234428]
[1633107717024,3.05883,3269.3,3268.4,0.003]
[1633107717224,3.05883,3269.3,3268.5,0.74089599]
[1633107717426,0.99079498,3268.7,3268.5,0.74089599]
[1633107717625,3.05929,3268.9,3268.5,0.74089599]
[1633107718025,3.05929,3268.9,3268.5,5.32967599]
[1633107718627,0.003,3269.5,3268.7,1.294]
[1633107718827,0.003,3269.5,3268.6,1.2234446]
[1633107719025,0.003,3269.5,3268.6,1.25420137]
[1633107719226,0.003,3269.5,3268.8,3.05794]
[1633107719429,0.003,3269.5,3268.8,5.41594]
[1633107719627,0.003,3269.5,3269.1,0.95512384]
[1633107719827,0.003,3269.5,3269.1,0.45512384]
[1633107720033,0.003,3269.5,3269.2,1.2229868]
[1633107720229,1.34142321,3269.9,3269.2,1.26050592]
[1633107720430,1.34142321,3269.9,3269.6,3.05716]
[1633107720629,1.34142321,3269.9,3269.6,7.68187695]
[1633107720828,1.34142321,3269.9,3269.6,8.51938481]
[1633107721228,1.34142321,3269.9,3269.6,8.8656548]
[1633107721830,1.34142321,3269.9,3269.7,4.5863]
[1633107722231,1.34142321,3269.9,3269.0,0.003]
[1633107722633,1.34142321,3269.9,3268.7,0.23409857]
[1633107722830,1.34142321,3269.9,3269.6,4.5863]
[1633107723029,1.34142321,3269.9,3269.7,3.05753]
[1633107723431,1.02990726,3269.8,3269.7,3.05753]
[1633107724833,1.34142321,3269.9,3269.8,4.58627]
[1633107725032,1.34142321,3269.9,3269.8,4.84725618]
[1633107725235,1.34142321,3269.9,3269.8,4.88004123]
[1633107725431,1.34142321,3269.9,3269.8,6.13354123]
[1633107725831,1.34142321,3269.9,3269.8,7.06735067]
[1633107728032,1.34142321,3269.9,3269.8,4.88004123]
[1633107728233,1.34142321,3269.9,3269.8,4.58627]
[1633107730134,2.24882324,3269.9,3269.8,4.58627]
[1633107730341,2.24882324,3269.9,3268.8,6.11603]
[1633107730342,2.06412509,3269.4,3268.8,6.11603]
[1633107730535,0.89939439,3269.3,3269.0,0.003]
[1633107730736,3.0592,3269.2,3269.0,0.003]
[1633107730933,3.0592,3269.2,3268.5,3.09634917]
[1633107730934,3.0592,3269.2,3268.6,1.2264356]
[1633107731334,3.0592,3269.2,3268.8,6.11718]
[1633107731736,3.0592,3269.2,3268.9,0.003]
[1633107731935,3.0592,3269.2,3268.9,3.06141]
[1633107732337,3.0592,3269.2,3269.0,6.1198]
[1633107732537,1.14411281,3269.1,3269.0,6.1198]
[1633107732735,3.0592,3269.2,3269.0,6.1198]
[1633107733136,2.06412509,3269.4,3269.0,7.3430473]
[1633107733336,2.06412509,3269.4,3269.0,1.2262473]
[1633107733536,2.06412509,3269.4,3269.2,4.58728]
[1633107734137,3.02337646,3269.4,3269.0,0.003]
[1633107734339,1.13824799,3269.1,3269.0,0.003]
[1633107734540,3.05858,3269.3,3269.0,0.003]
[1633107734944,15.344,3269.2,3269.0,0.003]
[1633107735140,3.05841,3268.9,3268.5,0.003]
[1633107735542,3.05963,3268.8,3268.5,0.003]
[1633107735738,4.07508555,3268.8,3267.9,0.006]
[1633107735939,0.99169411,3268.0,3267.9,0.006]
[1633107736144,3.20663,3268.8,3267.9,0.006]
[1633107736539,3.05949,3268.4,3267.9,0.006]
[1633107737140,0.79212837,3268.1,3267.9,0.006]
[1633107737341,0.79212837,3268.1,3267.9,4.59549]
[1633107737342,15.344,3268.0,3267.9,4.59549]
[1633107737542,15.344,3268.0,3267.7,3.46]
[1633107737543,1.60717585,3267.8,3267.7,3.46]
[1633107737741,1.75417585,3267.8,3267.7,3.46]
[1633107738342,1.60717585,3267.8,3267.7,8.0497]
[1633107739041,1.60717585,3267.8,3267.7,2.46]
[1633107740442,2.90117585,3267.8,3267.7,2.46]
[1633107740643,1.60717585,3267.8,3267.7,2.46]
[1633107742442,1.59668805,3267.8,3267.7,2.46]
[1633107744446,1.59668805,3267.8,3267.5,3.05931]
[1633107744644,2.45626479,3267.8,3267.5,3.05931]
[1633107744843,2.45626479,3267.8,3267.5,3.06231]
[1633107745044,1.59668805,3267.8,3267.5,3.06231]
[1633107745844,1.59668805,3267.8,3267.5,0.003]
[1633107746051,2.77882711,3267.8,3267.5,0.003]
[1633107746246,2.77882711,3267.8,3267.4,0.003]
[1633107746844,2.77882711,3267.8,3267.4,3.06286]
[1633107747043,1.59668805,3267.8,3267.4,3.06286]
[1633107747244,1.59668805,3267.8,3267.5,4.59292]
[1633107747445,1.58157951,3267.8,3267.5,4.59292]
[1633107750246,1.58157951,3267.8,3267.5,4.59141592]
[1633107753047,1.58157951,3267.8,3267.5,3.59141592]
[1633107754316,1.58157951,3267.8,3267.5,6.65082592]
[1633107754448,1.58157951,3267.8,3267.5,3.05941]
[1633107754648,1.58157951,3267.8,3267.6,4.58915]
[1633107758452,1.58157951,3267.8,3267.5,3.05941]
[1633107758652,1.18852935,3267.6,3267.5,3.05941]
[1633107758852,1.58157951,3267.8,3267.5,3.05941]
[1633107760319,1.58157951,3267.8,3267.6,5.8138253]
[1633107760856,1.58157951,3267.8,3267.6,1.2238153]
[1633107761455,1.58157951,3267.8,3267.7,6.11925]
[1633107763460,0.003,3268.0,3267.8,0.858]
[1633107763659,0.003,3268.0,3267.8,7.84481746]
[1633107763861,0.003,3268.0,3267.9,12.24644]
[1633107764061,0.003,3268.0,3267.9,32.82730667]
[1633107764262,0.003,3268.5,3268.1,1.36307511]
[1633107764461,0.003,3268.5,3268.2,10.1809506]
[1633107764858,0.003,3268.5,3268.3,0.9127]
[1633107765058,0.003,3268.5,3268.4,0.03715125]
[1633107765258,0.003,3268.5,3268.3,4.58782]
[1633107765459,0.003,3268.5,3268.4,1.3904]
[1633107766061,0.003,3268.5,3268.3,4.58782]
[1633107766325,3.01141,3268.9,3268.5,3.05874]
[1633107766463,4.19533195,3268.9,3268.8,0.7088523]
[1633107767662,4.19533195,3268.9,3268.7,4.58811]
[1633107767860,3.01141,3268.9,3268.7,4.58811]
[1633107768662,3.01141,3268.9,3268.8,0.80042659]
[1633107769467,0.003,3269.0,3268.8,0.80042659]
[1633107770463,0.003,3269.0,3268.9,4.5871]
[1633107772328,0.003,3269.5,3268.9,4.5871]
[1633107773263,0.003,3269.5,3269.4,0.80361071]
[1633107773463,0.003,3269.5,3269.1,3.0577]
[1633107774264,0.003,3269.5,3269.4,4.58698]
[1633107779471,13.047,3269.5,3269.4,3.03698]
[1633107779673,1.09934139,3269.0,3268.5,0.003]
[1633107779874,0.02424433,3268.8,3268.5,0.003]
[1633107780069,0.02424433,3268.8,3268.7,6.11758]
[1633107780471,0.76715174,3268.9,3268.7,6.11758]
[1633107781670,0.76715174,3268.9,3268.8,4.58819]
[1633107781870,0.76715174,3268.9,3268.6,3.059]
[1633107782071,0.76715174,3268.9,3268.4,0.003]
[1633107782072,1.31813585,3268.8,3268.4,0.003]
[1633107782271,0.17113585,3268.8,3268.3,0.003]
[1633107782473,1.00380556,3268.4,3268.0,0.006]
[1633107782670,0.17113585,3268.8,3267.9,0.006]
[1633107782671,0.147,3268.3,3267.9,0.006]
[1633107782869,0.147,3268.3,3267.9,6.1246]
[1633107783069,0.147,3268.3,3267.9,6.97473109]
[1633107783270,0.147,3268.3,3268.1,3.0593]
[1633107783670,1.33916058,3268.3,3268.1,3.0593]
[1633107784070,0.147,3268.3,3268.1,3.0593]
[1633107784271,0.147,3268.3,3268.1,7.64854]
[1633107784671,0.003,3268.5,3268.1,7.64854]
[1633107784874,0.003,3268.5,3268.1,3.0593]
[1633107785272,0.86529356,3268.5,3268.3,4.58858]
[1633107786675,7.597,3268.4,3268.2,6.11811]
[1633107786874,0.147,3268.4,3268.1,3.0593]
[1633107787472,0.9804239,3268.4,3268.1,3.0593]
[1633107787676,0.9804239,3268.4,3268.2,4.58912]
[1633107788273,0.147,3268.4,3268.2,4.58912]
[1633107801488,0.147,3268.4,3268.1,3.0593]
[1633107801489,5.85,3268.3,3268.1,3.0593]
[1633107801690,0.147,3268.4,3268.1,3.0593]
[1633107803294,0.147,3268.4,3268.2,4.58912]
[1633107807292,0.147,3268.4,3268.1,3.0593]
[1633107807495,0.86239856,3268.0,3267.8,3.26293989]
[1633107807694,0.147,3268.4,3267.8,3.26293989]
[1633107807893,0.147,3268.4,3268.0,4.58922]
[1633107808894,0.147,3268.4,3268.0,5.51568372]
[1633107809692,1.12237857,3268.2,3268.0,4.58922]
[1633107809893,0.147,3268.4,3268.0,4.58922]
[1633107810893,1.22142064,3268.4,3268.0,4.58922]
[1633107813295,0.88551655,3268.3,3268.0,4.58922]
[1633107814099,6.52587978,3267.8,3267.5,21.06880069]
[1633107814366,6.52587978,3267.8,3267.1,2.3952719]
[1633107814367,1.10833692,3267.4,3267.1,2.3952719]
[1633107814603,0.147,3267.3,3267.0,0.003]
[1633107814801,0.147,3267.3,3266.9,0.003]
[1633107814999,0.94750271,3267.2,3266.9,0.003]
[1633107815199,0.147,3267.1,3266.9,0.003]
[1633107823002,3.06337,3268.0,3267.5,1.56325288]
[1633107823206,0.003,3268.0,3267.5,4.73567712]
[1633107823803,0.003,3268.0,3267.6,0.98667743]
[1633107824005,0.003,3268.0,3267.8,0.71099999]
[1633107824203,0.003,3268.0,3267.8,1.34519999]
[1633107824802,0.003,3268.0,3267.8,7.47419999]
[1633107825202,0.003,3268.0,3267.9,9.844]
[1633107825401,0.003,3268.0,3267.9,5.88237]
[1633107829402,0.003,3268.0,3267.9,4.58837]
[1633107830003,0.003,3268.0,3267.9,5.88237]
[1633107832667,4.80730362,3268.9,3268.3,0.96739214]
[1633107832868,1.10895395,3268.4,3268.3,0.96739214]
[1633107833268,3.84622783,3268.9,3268.3,0.96739214]
[1633107833469,3.05883,3268.9,3268.3,0.96739214]
[1633107833866,3.00883,3268.9,3268.3,0.96739214]
[1633107834266,1.19852014,3268.8,3268.3,0.96739214]
[1633107835067,1.19852014,3268.8,3268.3,5.55590214]
[1633107836166,1.19852014,3268.8,3268.3,0.96739214]
[1633107836769,1.19852014,3268.8,3268.2,3.05891]
[1633107836971,3.05915,3268.7,3268.2,3.05891]
[1633107838971,1.09680658,3268.3,3268.2,3.05891]
[1633107839976,3.05915,3268.7,3268.2,3.05891]
[1633107840972,1.04661551,3268.6,3268.2,3.05891]
[1633107841972,0.83361978,3268.5,3268.2,3.05891]
[1633107842772,0.83361978,3268.5,3267.9,0.003]
[1633107843373,0.83361978,3268.5,3267.9,4.59205]
[1633107843773,0.83361978,3268.5,3268.0,0.003]
[1633107844176,3.05944,3268.3,3267.9,0.003]
[1633107844474,3.05944,3268.3,3268.0,4.5887]
[1633107844678,1.04661551,3268.6,3268.0,4.5887]
[1633107844877,1.04661551,3268.6,3268.0,4.5917]
[1633107845478,0.77996547,3268.5,3268.0,4.5917]
[1633107846878,3.05908,3268.7,3268.0,4.5917]
[1633107847478,3.05908,3268.7,3268.1,2.59473294]
[1633107847677,3.05908,3268.7,3268.3,4.58802]
[1633107847878,3.05908,3268.7,3268.5,0.96831636]
[1633107848079,3.05908,3268.7,3268.3,4.58802]
[1633107848481,3.05908,3268.7,3268.2,6.11735]
[1633107848680,3.05908,3268.7,3268.1,5.65369294]
[1633107848879,3.05908,3268.7,3268.1,3.05896]
[1633107849083,1.91708794,3268.2,3268.1,3.05896]
[1633107849480,1.91708794,3268.2,3268.0,0.003]
[1633107849686,0.038358,3268.9,3268.0,4.59194]
[1633107849883,0.038358,3268.9,3268.0,4.58894]
[1633107851085,0.77014693,3268.6,3268.0,4.58894]
[1633107851282,0.038358,3268.9,3268.0,5.5066086]
[1633107851485,3.05905,3268.8,3268.0,0.9206686]
[1633107851884,1.00830032,3268.4,3268.2,4.58842]
[1633107852284,0.7683809,3268.7,3268.2,4.58842]
[1633107852686,3.05905,3268.8,3268.2,4.58842]
[1633107853491,0.89021142,3268.5,3268.2,4.58842]
[1633107854284,3.05905,3268.8,3268.2,4.58842]
[1633107854884,3.8918615,3268.8,3268.2,4.58842]
[1633107855287,0.9146686,3268.0,3267.8,0.71099999]
[1633107855488,0.147,3267.9,3267.8,0.71099999]
[1633107855689,0.17262381,3267.9,3267.8,0.71099999]
[1633107856086,0.17262381,3267.9,3267.8,0.94619999]
[1633107856288,2.9590698,3267.9,3267.8,0.94619999]
[1633107856689,15.7560698,3267.9,3267.8,0.94619999]
[1633107856890,14.05,3267.8,3267.5,2.91717712]
[1633107857089,3.1060698,3267.9,3267.5,2.91717712]
[1633107857090,0.147,3267.7,3267.5,2.91717712]
[1633107857291,0.147,3267.6,3267.5,2.91717712]
[1633107857491,1.441,3267.6,3267.5,2.91717712]
[1633107858090,13.3,3267.4,3266.3,0.006]
[1633107858290,0.147,3267.3,3266.3,0.006]
[1633107858889,0.147,3267.3,3266.3,2.466]
[1633107859090,0.81185779,3267.1,3266.5,0.7570732]
[1633107859290,0.147,3267.0,3266.5,0.7570732]
[1633107859490,1.27927518,3267.0,3266.6,0.003]
[1633107860492,1.27927518,3267.0,3266.6,2.463]
[1633107860890,1.27927518,3267.0,3266.7,0.003]
[1633107861491,0.147,3267.0,3266.7,2.463]
[1633107861891,0.147,3267.0,3266.8,0.003]
[1633107862693,0.147,3267.0,3266.8,2.463]
[1633107862895,0.95806547,3266.9,3266.8,2.463]
[1633107863092,0.147,3266.9,3266.8,2.46]
[1633107863291,0.147,3266.9,3266.8,2.463]
[1633107867492,0.13189217,3266.9,3266.8,2.463]
[1633107867895,0.147,3267.7,3266.8,3.757]
[1633107868100,0.147,3267.7,3267.1,0.079913]
[1633107868695,1.12757222,3267.7,3267.1,0.079913]
[1633107869294,1.12757222,3267.7,3267.0,0.003]
[1633107869495,3.05996,3267.6,3267.2,0.94948909]
[1633107869894,1.0426063,3267.5,3267.2,0.94948909]
[1633107870095,3.05996,3267.6,3267.2,0.94948909]
[1633107870496,3.05996,3267.6,3267.3,0.03236634]
[1633107870699,3.05996,3267.6,3267.4,4.58938]
[1633107870893,3.05996,3267.6,3267.1,3.136307]
[1633107871094,1.0925164,3267.5,3267.1,3.136307]
[1633107871495,1.0925164,3267.5,3267.1,0.076717]
[1633107871694,1.0925164,3267.5,3267.0,6.12238]
[1633107871695,1.0925164,3267.5,3267.0,0.003]
[1633107871896,0.87442537,3267.3,3267.0,0.003]
[1633107872098,0.87442537,3267.3,3266.9,3.503]
[1633107872296,3.93462537,3267.3,3266.9,3.503]
[1633107872499,3.93462537,3267.3,3267.0,0.003]
[1633107873302,3.93462537,3267.3,3266.8,2.46]
[1633107873303,3.93462537,3267.3,3266.9,0.003]
[1633107874500,3.0602,3267.3,3266.9,0.003]
[1633107874902,3.0602,3267.3,3266.9,4.59319]
[1633107875301,3.0602,3267.3,3267.0,0.003]
[1633107876102,3.0602,3267.3,3266.9,0.003]
[1633107877302,0.96102975,3267.2,3266.9,0.003]
[1633107877502,3.0497066,3267.3,3266.9,4.59317]
[1633107877902,3.0497066,3267.3,3267.0,0.003]
[1633107878301,3.0497066,3267.3,3266.9,0.003]
[1633107878702,3.0497066,3267.3,3266.9,4.59324]
[1633107879103,3.0497066,3267.3,3267.0,0.003]
[1633107879703,3.0497066,3267.3,3266.9,0.003]
[1633107880368,3.0497066,3267.3,3267.1,4.58999]
[1633107881404,0.94280768,3267.5,3267.1,4.58999]
[1633107882206,0.99459571,3267.6,3267.1,4.58999]
[1633107882405,0.99459571,3267.6,3267.2,0.8195766]
[1633107882607,0.99459571,3267.6,3267.4,4.5898]
[1633107882808,0.147,3267.8,3267.4,4.5898]
[1633107883206,0.874703,3267.7,3267.4,4.5898]
[1633107883806,0.874703,3267.7,3267.3,4.59016]
[1633107884205,1.74127307,3267.7,3267.3,4.59016]
[1633107885212,0.6198,3267.0,3266.5,0.003]
[1633107885410,0.07163381,3266.6,3266.5,0.003]
[1633107885610,0.21863381,3266.6,3266.5,0.003]
[1633107886009,1.32820854,3266.6,3266.5,0.003]
[1633107886214,1.28248154,3266.6,3266.0,5.54885451]
[1633107886410,3.06112,3266.5,3266.1,0.003]
[1633107886612,3.20812,3266.5,3266.1,0.003]
[1633107888814,3.20812,3266.5,3265.9,0.006]
[1633107889011,3.20812,3266.5,3265.8,0.006]
[1633107889672,3.20812,3266.5,3266.1,4.59132]
[1633107890072,3.20812,3266.5,3266.2,0.003]
[1633107890273,0.99914987,3266.4,3266.2,0.003]
[1633107890673,0.99914987,3266.4,3266.1,0.003]
[1633107890873,0.99914987,3266.4,3266.0,0.003]
[1633107891073,0.99914987,3266.4,3265.8,0.006]
[1633107891478,4.60867143,3266.4,3265.8,0.006]
[1633107891677,14.092778,3265.9,3265.8,0.006]
[1633107891877,14.092778,3265.9,3265.5,0.003]
[1633107891878,20.1752867,3265.8,3265.5,0.003]
[1633107892077,20.1752867,3265.8,3265.1,0.003]
[1633107892078,7.80357,3265.7,3265.1,0.003]
[1633107892277,3.20963,3265.7,3264.5,0.009]
[1633107892477,3.73952176,3265.6,3265.3,2.46]
[1633107892678,3.4651118,3265.5,3265.3,2.46]
[1633107892879,0.147,3265.4,3265.3,2.46]
[1633107893278,4.74089,3265.4,3265.3,2.463]
[1633107893477,4.74089,3265.4,3265.3,0.003]
[1633107893875,4.74089,3265.4,3264.3,2.466]
[1633107893876,6.03489,3265.4,3264.7,0.90010637]
[1633107894080,4.74089,3265.4,3264.7,0.90010637]
[1633107894279,4.74089,3265.4,3264.8,0.006]
[1633107895280,4.74089,3265.4,3264.3,2.419]
[1633107895479,0.89656522,3264.7,3264.5,2.46]
[1633107895879,0.003,3265.0,3264.5,2.41]
[1633107896080,0.003,3265.0,3264.6,0.89134611]
[1633107896279,0.003,3265.0,3264.5,2.41]
[1633107896880,1.29296755,3264.9,3264.5,2.41]
[1633107897482,1.29296755,3264.9,3264.5,2.31]
[1633107898884,0.147,3264.9,3264.5,2.31]
[1633107900084,0.94987335,3264.6,3264.5,2.31]
[1633107900282,0.147,3264.7,3264.5,2.31]
[1633107900485,0.147,3264.7,3264.5,2.11]
[1633107902487,1.0344118,3264.7,3264.5,2.11]
[1633107903087,0.147,3264.7,3264.5,2.11]
[1633107905489,0.84739501,3264.6,3264.5,2.11]
[1633107905689,0.147,3264.7,3264.5,2.11]
[1633107906289,11.55,3264.6,3264.1,0.076717]
[1633107906492,0.147,3264.7,3264.0,10.003]
[1633107906493,3.06348,3264.3,3264.0,10.003]
[1633107906690,3.21048,3264.3,3264.0,10.003]
[1633107907290,0.73475857,3264.1,3264.0,10.003]
[1633107907691,0.90253737,3264.2,3264.0,10.003]
[1633107908793,0.98062983,3264.1,3264.0,10.003]
[1633107908998,4.83062983,3264.1,3264.0,10.003]
[1633107909193,20.92058983,3264.1,3264.0,5.94111006]
[1633107909394,9.49028173,3264.1,3264.0,5.31746404]
[1633107909596,5.64028173,3264.1,3264.0,0.0136437]
[1633107909793,5.64028173,3264.1,3264.0,10.0136437]
[1633107910793,6.93428173,3264.1,3264.0,10.0136437]
[1633107911596,6.65470682,3264.0,3263.3,0.003]
[1633107911794,0.038358,3263.5,3263.3,0.003]
[1633107911995,0.97224162,3263.5,3263.4,0.1863563]
[1633107912197,1.11924162,3263.5,3263.3,0.003]
[1633107912399,1.11924162,3263.5,3263.4,0.003]
[1633107912594,1.93045315,3263.5,3263.4,0.003]
[1633107912794,0.99656953,3263.5,3262.8,4.59668]
[1633107912993,0.185358,3263.5,3262.8,4.49668]
[1633107913194,0.185358,3263.5,3262.9,0.003]
[1633107913994,1.01965301,3263.1,3262.9,0.003]
[1633107914195,0.147,3263.0,3262.9,0.003]
[1633107915196,0.147,3263.0,3262.8,4.34968]
[1633107916599,0.147,3263.2,3262.9,15.344]
[1633107916804,0.003,3263.5,3263.4,0.54988198]
[1633107917007,0.003,3263.5,3263.4,0.62918298]
[1633107917403,0.003,3263.5,3263.4,1.52769973]
[1633107917601,0.003,3263.5,3263.4,4.27784853]
[1633107917800,0.003,3263.5,3263.4,5.57184853]
[1633107918001,0.003,3263.5,3263.4,3.64028354]
[1633107918204,0.003,3263.5,3263.4,7.28690679]
[1633107919002,0.003,3263.5,3263.4,15.55455198]
[1633107919201,0.003,3263.5,3263.4,10.14262512]
[1633107922204,0.003,3263.5,3263.4,8.47497993]
[1633107922611,1.68661902,3264.0,3263.4,8.47497993]
[1633107922807,1.68661902,3264.0,3263.4,5.99290679]
[1633107924006,1.68661902,3264.0,3263.9,0.70792753]
[1633107924407,1.68661902,3264.0,3263.9,5.30235753]
[1633107928208,1.67150361,3264.0,3263.9,5.30235753]
[1633107930414,0.17150361,3264.0,3263.9,6.59635753]
[1633107930611,2.113,3264.5,3264.0,0.00299639]
[1633107930812,0.003,3265.0,3264.5,5.17143]
[1633107931011,0.003,3265.0,3264.9,12.629913]
[1633107931213,0.003,3265.0,3264.9,14.129313]
[1633107931411,0.003,3265.0,3264.9,2.873313]
[1633107932411,0.003,3265.0,3264.9,7.465533]
[1633107932608,0.003,3265.0,3264.9,6.171533]
[1633107932812,0.003,3265.0,3264.7,3.6738112]
[1633107932813,0.003,3265.0,3264.7,3.06151]
[1633107933013,0.003,3265.0,3264.6,0.96994938]
[1633107933409,0.003,3265.0,3264.5,2.11]
[1633107933813,3.06582,3265.0,3264.5,2.11]
[1633107934412,0.84520689,3264.9,3264.5,2.11]
[1633107934611,0.84520689,3264.9,3264.5,6.70397]
[1633107935414,0.84520689,3264.9,3264.5,2.11]
[1633107935818,1.294,3264.7,3264.5,2.11]
[1633107936014,0.147,3264.7,3264.5,2.11]
[1633107937877,0.147,3264.7,3264.5,2.08272793]
[1633107938878,3.06582,3265.0,3264.5,2.08272793]
[1633107939280,3.06582,3265.0,3264.5,6.67661793]
[1633107939680,3.06582,3265.0,3264.5,2.08272793]
[1633107939882,1.294,3264.8,3264.5,2.08272793]
[1633107940081,3.06582,3265.0,3264.5,2.08272793]
[1633107940888,0.95659158,3264.6,3264.5,2.08272793]
[1633107942282,3.06582,3265.0,3264.5,2.08272793]
[1633107942484,1.294,3264.8,3264.5,2.08272793]
[1633107942683,3.06582,3265.0,3264.5,2.08272793]
[1633107943487,0.88695551,3264.7,3264.5,2.08272793]
[1633107945888,3.06582,3265.0,3264.5,2.08272793]
[1633107946093,1.294,3264.8,3264.5,2.08272793]
[1633107946288,3.06582,3265.0,3264.6,1.0220144]
[1633107946489,3.06582,3265.0,3264.5,2.08272793]
[1633107946893,3.06582,3265.0,3264.5,2.94486739]
[1633107947288,3.06582,3265.0,3264.5,7.53873739]
[1633107947489,3.06582,3265.0,3264.9,1.09210201]
[1633107947888,3.06582,3265.0,3264.5,2.94486739]
[1633107948288,3.06582,3265.0,3264.8,4.59362]
[1633107949889,3.83440086,3265.0,3264.8,4.59362]